[Event "3rd Sharjah Masters 2019"]
[Site "Sharjah"]
[Date "2019.03.29"]
[Round "8.46"]
[White "Sharma, Dinesh K."]
[Black "Shiva, Pavan Teja Sharma U"]
[Result "1-0"]
[ECO "E54"]
[WhiteElo "2286"]
[BlackElo "2093"]
[Annotator "NA"]
[PlyCount "97"]
[EventDate "2019.03.22"]
[EventType "swiss"]
[EventCountry "UAE"]
[SourceTitle "playchess.com"]
[Source "ChessBase"]
[SourceQuality "1"]
[TimeControl "5400+30"]

1. d4 {[%emt 0:00:00]} Nf6 {[%emt 0:02:37]} 2. c4 {[%emt 0:00:04]} e6 {[%emt 0:00:20]} 3. Nc3 {[%emt 0:01:21]} Bb4 {[%emt 0:00:30]} 4. e3 {[%emt 0:00:02]} O-O {[%emt 0:00:43]} 5. Bd3 {[%emt 0:00:05]} d5 {[%emt 0:01:51]} 6. Nf3 {[%emt 0:00:18]} c5 {[%emt 0:04:16]} 7. O-O {[%emt 0:00:08]} dxc4 {[%emt 0:15:00]} 8. Bxc4 {[%emt 0:00:07]} cxd4 {[%emt 0:04:36]} 9. exd4 {[%emt 0:00:03]} b6 {[%emt 0:00:17]} 10. Bg5 {[%emt 0:01:15]} Bb7 {[%emt 0:00:43]} 11. Ne5 {[%emt 0:03:32]} Be7 {[%emt 0:03:05]} 12. Qe2 {[%emt 0:03:43]} Nd5 {[%emt 0:10:33]} 13. Bxd5 {[%emt 0:13:15]} exd5 14. Bxe7 {[%emt 0:00:57]} Qxe7 {[%emt 0:06:23]} 15. Rfe1 {[%emt 0:00:27]} Nd7 {[%emt 0:08:55]} 16. Qb5 {[%emt 0:04:57]} Nxe5 {[%emt 0:02:02]} 17. Rxe5 {[%emt 0:00:26]} Qh4 {[%emt 0:00:46]} 18. Rd1 {[%emt 0:00:32]} Rad8 {[%emt 0:01:26]} 19. h3 {[%emt 0:01:58]} h6 {[%emt 0:00:18]} 20. Qa4 {[%emt 0:03:14]} a6 {[%emt 0:03:16]} 21. Qb4 {[%emt 0:01:32]} Qf6 {[%emt 0:02:30]} 22. Rde1 {[%emt 0:02:34]} Qc6 {[%emt 0:03:15]} 23. Qe7 {[%emt 0:09:29]} Bc8 {[%emt 0:03:28]} 24. Qb4 {[%emt 0:03:36]} Be6 {[%emt 0:04:31]} 25. Qa4 {[%emt 0:02:03]} b5 {[%emt 0:01:40]} 26. Qd1 {[%emt 0:00:55]} Qc4 {[%emt 0:01:19]} 27. R1e3 {[%emt 0:01:27]} Rd6 {[%emt 0:01:47]} 28. Rg3 {[%emt 0:02:20]} Bd7 {[%emt 0:01:22]} 29. b3 {[%emt 0:02:10]} Qc6 {[%emt 0:01:02]} 30. Qh5 {[%emt 0:00:16]} Rg6 {[%emt 0:03:02]} 31. Nxd5 {[%emt 0:01:51]} Qc1+ {[%emt 0:00:20]} 32. Kh2 {[%emt 0:00:03]} Rxg3 {[%emt 0:00:12]} 33. fxg3 {[%emt 0:01:33]} Qd2 {[%emt 0:00:18]} 34. Qe2 {[%emt 0:00:44]} Qxd4 {[%emt 0:02:16]} 35. Ne7+ {[%emt 0:00:19]} Kh8 {[%emt 0:00:17]} 36. Rd5 {[%emt 0:00:18]} Qa7 {[%emt 0:00:08]} 37. Qf3 {[%emt 0:01:37]} Bg4 {[%emt 0:02:48]} 38. Ng6+ {[%emt 0:07:05]} Kg8 {[%emt 0:00:07]} 39. Qxg4 {[%emt 0:00:44]} fxg6 {[%emt 0:00:04]} 40. Qxg6 {[%emt 0:01:11]} b4 {[%emt 0:05:56]} 41. Qe6+ {[%emt 0:07:25]} Qf7 {[%emt 0:00:39]} 42. Qc6 {[%emt 0:06:50]} h5 {[%emt 0:03:18]} 43. Rd7 {[%emt 0:00:52]} Qf5 {[%emt 0:00:18]} 44. Qc4+ {[%emt 0:01:20]} Kh7 {[%emt 0:00:09]} 45. Rd5 {[%emt 0:02:59]} Qf7 {[%emt 0:00:24]} 46. Qc5 {[%emt 0:03:47]} Kh6 {[%emt 0:01:08]} 47. Rd6+ {[%emt 0:02:22]} Kh7 {[%emt 0:00:17]} 48. Qxb4 {[%emt 0:00:19]} Re8 {[%emt 0:00:52]} 49. Qf4 {[%emt 0:01:12]} 1-0

[Event "3rd Sharjah Masters 2019"]
[Site "Sharjah"]
[Date "2019.03.29"]
[Round "8.47"]
[White "Ranaldi, Lucas"]
[Black "Dr., Murtaza Ali"]
[Result "0-1"]
[ECO "A16"]
[WhiteElo "2279"]
[BlackElo "2084"]
[Annotator "NA"]
[PlyCount "126"]
[EventDate "2019.03.22"]
[EventType "swiss"]
[EventCountry "UAE"]
[SourceTitle "playchess.com"]
[Source "ChessBase"]
[SourceQuality "1"]
[TimeControl "5400+30"]

1. c4 {[%emt 0:00:00]} Nf6 {[%emt 0:00:00]} 2. Nc3 {[%emt 0:00:03]} c6 {[%emt 0:00:00]} 3. d4 {[%emt 0:11:02]} d5 {[%emt 0:00:08]} 4. cxd5 {[%emt 0:00:49]} cxd5 {[%emt 0:00:05]} 5. f3 {[%emt 0:00:06]} e6 {[%emt 0:00:17]} 6. e4 {[%emt 0:00:06]} Bb4 {[%emt 0:00:13]} 7. e5 {[%emt 0:01:03]} Nfd7 {[%emt 0:00:09]} 8. f4 {[%emt 0:04:44]} O-O {[%emt 0:00:53]} 9. Nf3 {[%emt 0:00:28]} Nc6 {[%emt 0:00:46]} 10. Bd3 {[%emt 0:00:44]} f5 {[%emt 0:00:19]} 11. O-O {[%emt 0:03:16]} Nb6 {[%emt 0:00:28]} 12. h3 {[%emt 0:10:52]} Bd7 {[%emt 0:02:09]} 13. g4 {[%emt 0:02:20]} g6 {[%emt 0:00:14]} 14. Kh1 {[%emt 0:07:59]} Rc8 {[%emt 0:00:01]} 15. Qe2 {[%emt 0:17:27]} Ne7 {[%emt 0:03:20]} 16. Nd1 {[%emt 0:01:35]} Nc4 {[%emt 0:04:44]} 17. a3 {[%emt 0:01:31]} Na5 {[%emt 0:02:17]} 18. Bc2 {[%emt 0:12:35]} a6 {[%emt 0:04:36]} 19. Rg1 {[%emt 0:16:14]} Bb5 {[%emt 0:00:20]} 20. Qf2 {[%emt 0:00:13]} Rxc2 {[%emt 0:11:46]} 21. Qxc2 {[%emt 0:00:01]} Qc8 {[%emt 0:00:19]} 22. Ne3 {[%emt 0:06:03]} Qxc2 {[%emt 0:00:20]} 23. Nxc2 {[%emt 0:00:01]} Nb3 {[%emt 0:00:01]} 24. axb4 {[%emt 0:00:47]} Bd3 {[%emt 0:02:11]} 25. Nfe1 {[%emt 0:00:02]} Be4+ {[%emt 0:00:00]} 26. Kh2 {[%emt 0:00:00]} Rc8 {[%emt 0:00:10]} 27. Ra3 {[%emt 0:01:37]} Nxc1 {[%emt 0:00:20]} 28. Rc3 {[%emt 0:00:53]} Rxc3 {[%emt 0:00:18]} 29. bxc3 {[%emt 0:00:01]} Ne2 {[%emt 0:00:01]} 30. Rf1 {[%emt 0:01:00]} Nxc3 {[%emt 0:00:20]} 31. Ne3 {[%emt 0:01:02]} Nc6 {[%emt 0:00:33]} 32. N1c2 {[%emt 0:00:02]} Ne2 {[%emt 0:00:47]} 33. gxf5 {[%emt 0:00:51]} gxf5 {[%emt 0:00:17]} 34. Re1 {[%emt 0:00:49]} Nxf4 {[%emt 0:00:22]} 35. Kg3 {[%emt 0:00:18]} Nd3 {[%emt 0:00:01]} 36. Rg1 {[%emt 0:00:16]} Kf7 {[%emt 0:00:40]} 37. Kh2 {[%emt 0:01:04]} Ndxb4 {[%emt 0:00:34]} 38. Nxb4 {[%emt 0:00:01]} Nxb4 {[%emt 0:00:00]} 39. Kg3 {[%emt 0:00:32]} a5 {[%emt 0:01:09]} 40. Ra1 {[%emt 0:00:24]} Nc6 {[%emt 0:00:37]} 41. Nd1 {[%emt 0:00:59]} b5 {[%emt 0:01:15]} 42. Nc3 {[%emt 0:00:24]} b4 {[%emt 0:00:10]} 43. Nxe4 {[%emt 0:00:12]} fxe4 {[%emt 0:00:27]} 44. Kf4 {[%emt 0:00:26]} Ke7 {[%emt 0:00:37]} 45. Ke3 {[%emt 0:00:13]} Kd7 {[%emt 0:00:54]} 46. h4 {[%emt 0:00:01]} h5 {[%emt 0:00:21]} 47. Kf4 {[%emt 0:00:53]} Kc7 {[%emt 0:00:05]} 48. Kg5 {[%emt 0:00:14]} Kb6 {[%emt 0:00:28]} 49. Kxh5 {[%emt 0:00:08]} Nxd4 {[%emt 0:00:08]} 50. Kg6 {[%emt 0:01:00]} Nf5 {[%emt 0:01:39]} 51. h5 {[%emt 0:00:02]} e3 {[%emt 0:00:34]} 52. Rf1 {[%emt 0:01:51]} d4 {[%emt 0:01:14]} 53. Rxf5 {[%emt 0:00:12]} e2 {[%emt 0:00:22]} 54. h6 {[%emt 0:00:06]} e1=Q {[%emt 0:00:34]} 55. Rf6 {[%emt 0:01:05]} Qxe5 {[%emt 0:01:21]} 56. h7 {[%emt 0:00:00]} Qg3+ {[%emt 0:01:55]} 57. Kf7 {[%emt 0:00:01]} Qh4 {[%emt 0:00:56]} 58. Kg7 {[%emt 0:00:06]} b3 {[%emt 0:01:17]} 59. Rxe6+ {[%emt 0:00:14]} Kc5 {[%emt 0:00:18]} 60. Rh6 {[%emt 0:01:21]} Qe7+ {[%emt 0:00:23]} 61. Kg8 {[%emt 0:00:09]} b2 {[%emt 0:00:37]} 62. Rh5+ {[%emt 0:00:29]} Kb4 {[%emt 0:00:21]} 63. h8=Q {[%emt 0:00:30]} Qe8+ {[%emt 0:00:39]} 0-1

[Event "3rd Sharjah Masters 2019"]
[Site "Sharjah"]
[Date "2019.03.30"]
[Round "9.37"]
[White "Zou, Chen"]
[Black "Divya Deshmukh"]
[Result "1-0"]
[ECO "A17"]
[WhiteElo "2397"]
[BlackElo "2266"]
[Annotator "NA"]
[PlyCount "81"]
[EventDate "2019.03.22"]
[EventType "swiss"]
[EventCountry "UAE"]
[SourceTitle "playchess.com"]
[Source "ChessBase"]
[SourceQuality "1"]
[TimeControl "5400+30"]

1. Nf3 {[%emt 0:08:33]} Nf6 {[%emt 0:00:00]} 2. c4 {[%emt 0:00:12]} e6 {[%emt 0:00:00]} 3. Nc3 {[%emt 0:00:32]} Bb4 {[%emt 0:00:00]} 4. Qc2 {[%emt 0:00:28]} d5 {[%emt 0:07:54]} 5. a3 {[%emt 0:00:28]} Be7 {[%emt 0:01:52]} 6. d4 {[%emt 0:02:30]} O-O {[%emt 0:02:07]} 7. Bf4 {[%emt 0:01:42]} c6 {[%emt 0:00:39]} 8. e3 {[%emt 0:00:14]} Nbd7 {[%emt 0:01:20]} 9. Bd3 {[%emt 0:02:04]} Re8 {[%emt 0:00:53]} 10. O-O {[%emt 0:03:27]} Bf8 {[%emt 0:05:50]} 11. b4 {[%emt 0:04:05]} b6 {[%emt 0:04:14]} 12. cxd5 {[%emt 0:29:21]} exd5 {[%emt 0:01:44]} 13. e4 {[%emt 0:03:28]} dxe4 {[%emt 0:03:18]} 14. Nxe4 {[%emt 0:00:44]} Bb7 {[%emt 0:01:08]} 15. Ne5 {[%emt 0:07:46]} Nxe5 {[%emt 0:19:50]} 16. Nxf6+ {[%emt 0:02:32]} gxf6 {[%emt 0:01:06]} 17. Bxh7+ {[%emt 0:00:48]} Kh8 {[%emt 0:00:05]} 18. dxe5 {[%emt 0:00:05]} fxe5 {[%emt 0:00:02]} 19. Be3 {[%emt 0:00:31]} Bg7 {[%emt 0:01:54]} 20. Rad1 {[%emt 0:11:22]} Qe7 {[%emt 0:02:15]} 21. Be4 {[%emt 0:01:21]} Rad8 {[%emt 0:00:26]} 22. Qa4 {[%emt 0:09:05]} Rxd1 {[%emt 0:02:56]} 23. Rxd1 {[%emt 0:00:04]} Rd8 {[%emt 0:00:04]} 24. Rc1 {[%emt 0:02:00]} Qd6 {[%emt 0:00:21]} 25. Bf3 {[%emt 0:02:05]} a6 {[%emt 0:07:24]} 26. Bxb6 {[%emt 0:00:42]} Rg8 {[%emt 0:01:05]} 27. Qc2 {[%emt 0:03:36]} Bh6 {[%emt 0:01:09]} 28. Rd1 {[%emt 0:00:05]} Qf6 {[%emt 0:00:03]} 29. Qe4 {[%emt 0:01:21]} Ba8 {[%emt 0:01:21]} 30. Bc5 {[%emt 0:00:34]} Bf4 {[%emt 0:00:43]} 31. g3 {[%emt 0:00:44]} Qg7 {[%emt 0:05:57]} 32. Kh1 {[%emt 0:00:35]} Bg5 {[%emt 0:00:03]} 33. Rd7 {[%emt 0:00:29]} Rd8 {[%emt 0:02:01]} 34. Rxd8+ {[%emt 0:00:43]} Bxd8 {[%emt 0:00:01]} 35. Qf5 {[%emt 0:00:12]} Bg5 {[%emt 0:01:19]} 36. Be4 {[%emt 0:01:14]} Bb7 {[%emt 0:00:39]} 37. Qh3+ {[%emt 0:00:22]} Kg8 {[%emt 0:00:10]} 38. Qd7 {[%emt 0:00:09]} f5 {[%emt 0:00:14]} 39. Qe8+ {[%emt 0:00:10]} Kh7 {[%emt 0:00:01]} 40. Bxf5+ {[%emt 0:00:06]} Kh6 {[%emt 0:00:03]} 41. Bf8 {[%emt 0:00:12]} 1-0

[Event "3rd Sharjah Masters 2019"]
[Site "Sharjah"]
[Date "2019.03.30"]
[Round "9.38"]
[White "Dhulipalla Bala Chandra Prasa"]
[Black "Kunal, M.."]
[Result "1-0"]
[ECO "E04"]
[WhiteElo "2384"]
[BlackElo "2258"]
[Annotator "NA"]
[PlyCount "71"]
[EventDate "2019.03.22"]
[EventType "swiss"]
[EventCountry "UAE"]
[SourceTitle "playchess.com"]
[Source "ChessBase"]
[SourceQuality "1"]
[TimeControl "5400+30"]

1. d4 {[%emt 0:00:00]} Nf6 {[%emt 0:00:00]} 2. c4 {[%emt 0:00:00]} e6 {[%emt 0:00:00]} 3. g3 {[%emt 0:00:00]} d5 {[%emt 0:00:37]} 4. Nf3 {[%emt 0:00:13]} dxc4 {[%emt 0:01:51]} 5. Bg2 {[%emt 0:00:07]} c5 {[%emt 0:01:03]} 6. O-O {[%emt 0:00:16]} Nc6 {[%emt 0:01:57]} 7. Qa4 {[%emt 0:01:28]} Bd7 {[%emt 0:01:00]} 8. Qxc4 {[%emt 0:00:53]} cxd4 {[%emt 0:00:13]} 9. Nxd4 {[%emt 0:01:58]} Rc8 {[%emt 0:00:16]} 10. Nc3 {[%emt 0:03:01]} Nb4 {[%emt 0:08:54]} 11. Qb3 {[%emt 0:03:28]} e5 {[%emt 0:00:07]} 12. Nf3 {[%emt 0:03:02]} Be6 {[%emt 0:03:35]} 13. Qa4+ {[%emt 0:10:55]} Bd7 {[%emt 0:00:54]} 14. Qd1 {[%emt 0:06:56]} Nc6 {[%emt 0:03:27]} 15. Nb5 {[%emt 0:02:16]} Ne4 {[%emt 0:11:29]} 16. Qd5 {[%emt 0:10:38]} Nf6 {[%emt 0:00:10]} 17. Nd6+ {[%emt 0:03:26]} Bxd6 {[%emt 0:00:06]} 18. Qxd6 {[%emt 0:00:03]} Be6 {[%emt 0:06:53]} 19. Qa3 {[%emt 0:03:45]} Qe7 {[%emt 0:01:31]} 20. b3 {[%emt 0:05:54]} Qxa3 {[%emt 0:11:37]} 21. Bxa3 {[%emt 0:00:06]} e4 {[%emt 0:00:03]} 22. Ng5 {[%emt 0:07:17]} Nd4 {[%emt 0:11:52]} 23. Nxe4 {[%emt 0:04:55]} Nxe2+ {[%emt 0:01:44]} 24. Kh1 {[%emt 0:00:13]} Nxe4 {[%emt 0:00:04]} 25. Bxe4 {[%emt 0:00:19]} b6 {[%emt 0:00:08]} 26. Bg2 {[%emt 0:18:36]} Nc3 {[%emt 0:02:22]} 27. Rfc1 {[%emt 0:01:38]} Kd7 {[%emt 0:13:32]} 28. Bb2 {[%emt 0:03:28]} Nd5 {[%emt 0:00:50]} 29. Rd1 {[%emt 0:00:50]} Rc5 {[%emt 0:02:58]} 30. b4 {[%emt 0:03:57]} Rb5 {[%emt 0:00:10]} 31. a3 {[%emt 0:00:17]} f6 {[%emt 0:02:09]} 32. Rd2 {[%emt 0:01:57]} Rd8 {[%emt 0:02:28]} 33. a4 {[%emt 0:02:20]} Rxb4 {[%emt 0:00:04]} 34. Bxd5 {[%emt 0:00:09]} Ke7 {[%emt 0:01:55]} 35. Re1 {[%emt 0:02:05]} Rxd5 {[%emt 0:01:24]} 36. Ba3 {[%emt 0:00:01]} 1-0

[Event "3rd Sharjah Masters 2019"]
[Site "Sharjah"]
[Date "2019.03.30"]
[Round "9.39"]
[White "Nitin, S.."]
[Black "Rohit, Singh Rana"]
[Result "1-0"]
[ECO "B90"]
[WhiteElo "2408"]
[BlackElo "1896"]
[Annotator "ChessBase"]
[PlyCount "41"]
[EventDate "2019.03.22"]
[EventType "swiss"]
[EventCountry "UAE"]
[SourceTitle "playchess.com"]
[Source "ChessBase"]
[SourceQuality "1"]
[TimeControl "5400+30"]

1. e4 {[%emt 0:00:04]} c5 {[%emt 0:00:00]} 2. Nf3 {[%emt 0:00:14]} d6 {[%emt 0:00:00]} 3. d4 {[%emt 0:00:08]} cxd4 {[%emt 0:00:00]} 4. Nxd4 {[%emt 0:00:22]} Nf6 {[%emt 0:00:00]} 5. Nc3 {[%emt 0:00:05]} a6 {[%emt 0:00:00]} 6. Be3 {[%emt 0:00:08]} e5 {[%emt 0:00:03]} 7. Nb3 {[%emt 0:00:05]} Be6 {[%emt 0:00:05]} 8. Qd2 {[%emt 0:00:16]} Be7 {[%emt 0:00:12]} 9. f4 {[%emt 0:01:20]} O-O {[%emt 0:00:38]} 10. O-O-O {[%emt 0:00:17]} b5 {[%emt 0:01:05]} 11. f5 {[%emt 0:00:23]} Bd7 {[%emt 0:03:21]} 12. g4 {[%emt 0:05:15]} Nxg4 {[%emt 0:02:59]} 13. Rg1 {[%emt 0:01:38]} Nxe3 {[%emt 0:00:07]} 14. Qxe3 {[%emt 0:00:09]} Kh8 {[%emt 0:02:33]} 15. Be2 {[%emt 0:10:30]} Bc6 {[%emt 0:14:18]} 16. Rg3 {[%emt 0:02:55]} h6 {[%emt 0:14:42]} 17. Rdg1 {[%emt 0:00:46]} Bf6 {[%emt 0:04:15]} 18. Rh3 {[%emt 0:00:50]} Kh7 {[%emt 0:01:31]} 19. Bh5 {[%emt 0:00:25]} Bg5 {[%emt 0:11:22]} 20. Rxg5 {[%emt 0:00:59]} Qxg5 {[%emt 0:00:04]} 21. Qxg5 {[%emt 0:00:17]} 1-0

[Event "3rd Sharjah Masters 2019"]
[Site "Sharjah"]
[Date "2019.03.30"]
[Round "9.42"]
[White "Tissir, Mohamed"]
[Black "Zarkovic, Mila"]
[Result "1/2-1/2"]
[ECO "B90"]
[WhiteElo "2386"]
[BlackElo "2187"]
[Annotator "ChessBase"]
[PlyCount "29"]
[EventDate "2019.03.22"]
[EventType "swiss"]
[EventCountry "UAE"]
[SourceTitle "playchess.com"]
[Source "ChessBase"]
[SourceQuality "1"]
[TimeControl "5400+30"]

1. e4 {[%emt 0:00:39]} c5 {[%emt 0:00:00]} 2. Nf3 {[%emt 0:01:13]} d6 {[%emt 0:00:00]} 3. d4 {[%emt 0:00:12]} cxd4 {[%emt 0:00:00]} 4. Nxd4 {[%emt 0:00:05]} Nf6 {[%emt 0:00:00]} 5. Nc3 {[%emt 0:00:09]} a6 {[%emt 0:00:00]} 6. h3 {[%emt 0:02:20]} e6 {[%emt 0:00:58]} 7. g4 {[%emt 0:01:56]} h6 {[%emt 0:00:08]} 8. Bg2 {[%emt 0:03:40]} Be7 {[%emt 0:08:30]} 9. Be3 {[%emt 0:05:08]} Nc6 {[%emt 0:01:07]} 10. f4 {[%emt 0:25:45]} Nd7 {[%emt 0:03:27]} 11. Qd2 {[%emt 0:12:30]} Nxd4 {[%emt 0:07:56]} 12. Bxd4 {[%emt 0:01:04]} e5 {[%emt 0:03:40]} 13. fxe5 {[%emt 0:06:13]} Bh4+ {[%emt 0:16:30]} 14. Bf2 {[%emt 0:02:32]} Bxf2+ {[%emt 0:02:22]} 15. Qxf2 {[%emt 0:00:23]} 1/2-1/2

[Event "3rd Sharjah Masters 2019"]
[Site "Sharjah"]
[Date "2019.03.30"]
[Round "9.43"]
[White "Zaibi, Amir"]
[Black "Srihari, L R"]
[Result "1/2-1/2"]
[ECO "B42"]
[WhiteElo "2386"]
[BlackElo "2211"]
[Annotator "NA"]
[PlyCount "77"]
[EventDate "2019.03.22"]
[EventType "swiss"]
[EventCountry "UAE"]
[SourceTitle "playchess.com"]
[Source "ChessBase"]
[SourceQuality "1"]
[TimeControl "5400+30"]

1. e4 {[%emt 0:00:00]} c5 {[%emt 0:00:00]} 2. Nf3 {[%emt 0:00:00]} e6 {[%emt 0:02:21]} 3. d4 {[%emt 0:00:00]} cxd4 {[%emt 0:00:13]} 4. Nxd4 {[%emt 0:00:00]} a6 {[%emt 0:00:13]} 5. Bd3 {[%emt 0:00:14]} Bc5 {[%emt 0:00:15]} 6. Nb3 {[%emt 0:00:05]} Be7 {[%emt 0:01:48]} 7. O-O {[%emt 0:00:22]} Nc6 {[%emt 0:00:18]} 8. Qe2 {[%emt 0:02:55]} d6 {[%emt 0:02:19]} 9. f4 {[%emt 0:00:29]} Qc7 {[%emt 0:00:56]} 10. Nc3 {[%emt 0:02:29]} Nf6 {[%emt 0:00:52]} 11. Bd2 {[%emt 0:00:12]} b5 {[%emt 0:07:23]} 12. a3 {[%emt 0:00:35]} Bb7 {[%emt 0:00:49]} 13. Rae1 {[%emt 0:01:30]} Nd7 {[%emt 0:00:11]} 14. Nd5 {[%emt 0:02:50]} exd5 {[%emt 0:00:48]} 15. exd5 {[%emt 0:00:06]} Nce5 {[%emt 0:00:07]} 16. Ba5 {[%emt 0:03:44]} Qb8 {[%emt 0:08:46]} 17. Bf5 {[%emt 0:09:07]} Qa7+ {[%emt 0:01:09]} 18. Kh1 {[%emt 0:00:07]} Bxd5 {[%emt 0:00:38]} 19. Bxd7+ {[%emt 0:04:48]} Qxd7 {[%emt 0:00:23]} 20. fxe5 {[%emt 0:00:08]} Bc4 {[%emt 0:06:37]} 21. e6 {[%emt 0:05:58]} Qxe6 {[%emt 0:17:22]} 22. Qf3 {[%emt 0:05:58]} O-O {[%emt 0:00:25]} 23. Nd4 {[%emt 0:04:48]} Qd7 {[%emt 0:01:23]} 24. Nf5 {[%emt 0:01:37]} Be6 {[%emt 0:23:57]} 25. Nxg7 {[%emt 0:03:04]} Kxg7 {[%emt 0:00:38]} 26. Bc3+ {[%emt 0:02:04]} f6 {[%emt 0:00:40]} 27. Qe4 {[%emt 0:01:40]} Rae8 {[%emt 0:16:35]} 28. Qxe6 {[%emt 0:00:20]} Qxe6 {[%emt 0:00:01]} 29. Rxe6 {[%emt 0:00:06]} Kf7 {[%emt 0:00:02]} 30. Ree1 {[%emt 0:14:58]} Rc8 {[%emt 0:01:12]} 31. Rf4 {[%emt 0:04:51]} Rc4 {[%emt 0:01:34]} 32. Rxc4 {[%emt 0:05:32]} bxc4 {[%emt 0:00:01]} 33. Re4 {[%emt 0:00:08]} Rc8 {[%emt 0:00:45]} 34. g4 {[%emt 0:02:56]} d5 {[%emt 0:00:44]} 35. Rf4 {[%emt 0:00:07]} Ke6 {[%emt 0:00:10]} 36. Kg2 {[%emt 0:00:38]} Rf8 {[%emt 0:01:05]} 37. Rf5 {[%emt 0:00:43]} Rg8 {[%emt 0:00:46]} 38. h3 {[%emt 0:02:22]} Rg5 {[%emt 0:00:19]} 39. Rf4 {[%emt 0:08:07] Ke5} 1/2-1/2

[Event "3rd Sharjah Masters 2019"]
[Site "Sharjah"]
[Date "2019.03.30"]
[Round "9.44"]
[White "Saurabh Anand"]
[Black "Singgih, Diajeng Theresa"]
[Result "1/2-1/2"]
[ECO "C45"]
[WhiteElo "2385"]
[BlackElo "2164"]
[Annotator "NA"]
[PlyCount "75"]
[EventDate "2019.03.22"]
[EventType "swiss"]
[EventCountry "UAE"]
[SourceTitle "playchess.com"]
[Source "ChessBase"]
[SourceQuality "1"]
[TimeControl "5400+30"]

1. e4 {[%emt 0:00:45]} e5 {[%emt 0:00:00]} 2. Nf3 {[%emt 0:00:06]} Nc6 {[%emt 0:00:00]} 3. d4 {[%emt 0:02:28]} exd4 {[%emt 0:00:32]} 4. Nxd4 {[%emt 0:00:09]} Bc5 {[%emt 0:00:33]} 5. Nb3 {[%emt 0:00:19]} Bb4+ {[%emt 0:00:43]} (5... Bb6 6. Nc3 Nf6 7. Qe2 O-O 8. Bg5 Nd4 9. Qd2 Nxb3 10. axb3 h6 11. Be3 Bxe3 12. Qxe3 d5 13. O-O-O c6 14. exd5 cxd5 {1-0 (40) Amin,B (2686)-Safarli,E (2676) Hoogeveen 2018}) 6. Nc3 {[%emt 0:01:51] C45: Scotch Game} Nf6 {[%emt 0:00:53]} 7. Bd3 {[%emt 0:00:15]} d5 {[%emt 0:03:18]} 8. exd5 {[%emt 0:04:01]} Nxd5 {[%emt 0:02:24]} 9. O-O {[%emt 0:01:15]} Nxc3 {[%emt 0:03:17]} 10. Qe1+ {[%emt 0:04:45]} Be6 $146 {[%emt 0:11:13]} ({Predecessor:} 10... Qe7 11. bxc3 Bd6 12. Nd4 Nxd4 13. cxd4 O-O 14. Be3 {½-½ (36) Kadianis,G (1998)-Papadopoulos,A (2176) Achaia 2017}) 11. bxc3 {[%emt 0:00:41]} Be7 {[%emt 0:00:32]} 12. Bf4 {[%emt 0:12:34]} O-O {[%emt 0:02:04]} 13. Rd1 {[%emt 0:00:45]} Qc8 {[%emt 0:02:03]} 14. Qe4 {[%emt 0:01:38]} g6 {[%emt 0:00:44]} 15. Nd4 {[%emt 0:08:33]} Nxd4 {[%emt 0:04:56]} 16. cxd4 {[%emt 0:00:32]} c6 {[%emt 0:04:56]} 17. c4 {[%emt 0:09:15]} Qd7 {[%emt 0:05:25]} 18. Rfe1 {[%emt 0:01:34]} Bb4 {[%emt 0:09:12]} 19. Bd2 {[%emt 0:03:21]} Bxd2 {[%emt 0:08:13]} 20. Rxd2 {[%emt 0:00:29]} Rfe8 {[%emt 0:03:31]} 21. Qf4 {[%emt 0:02:08]} a6 {[%emt 0:11:19]} 22. Bf1 {[%emt 0:02:09]} Bf5 {[%emt 0:02:53]} 23. Red1 {[%emt 0:03:27]} b5 {[%emt 0:03:05]} 24. f3 $11 {[%emt 0:04:07]} Qa7 {[%emt 0:10:04]} 25. Kh1 {[%emt 0:01:52]} bxc4 {[%emt 0:02:30]} 26. Bxc4 {[%emt 0:00:11]} Be6 {[%emt 0:00:09]} 27. d5 {[%emt 0:05:38]} cxd5 {[%emt 0:00:39]} 28. Bxd5 {[%emt 0:00:08]} Bxd5 {[%emt 0:00:06]} 29. Rxd5 {[%emt 0:00:08]} Qf2 {[%emt 0:01:10]} 30. h4 {[%emt 0:01:21]} Re2 {[%emt 0:02:02]} 31. Qg5 {[%emt 0:01:49]} Rae8 {[%emt 0:00:31]} 32. h5 {[%emt 0:01:11]} h6 {[%emt 0:03:18]} 33. Qg4 {[%emt 0:01:07]} g5 {[%emt 0:03:19]} 34. Kh2 {[%emt 0:12:23]} Re1 {[%emt 0:00:44]} 35. Rxe1 Rxe1 36. Qc8+ Kh7 37. Qg4 Kg8 38. Rd1 1/2-1/2

[Event "3rd Sharjah Masters 2019"]
[Site "Sharjah"]
[Date "2019.03.30"]
[Round "9.45"]
[White "Ajay Karthikeyan"]
[Black "Mohammed, Dilshad"]
[Result "1/2-1/2"]
[ECO "A45"]
[WhiteElo "2298"]
[BlackElo "2006"]
[Annotator "NA"]
[PlyCount "76"]
[EventDate "2019.03.22"]
[EventType "swiss"]
[EventCountry "UAE"]
[SourceTitle "playchess.com"]
[Source "ChessBase"]
[SourceQuality "1"]
[TimeControl "5400+30"]

1. d4 {[%emt 0:00:47]} Nf6 {[%emt 0:00:49]} 2. Bf4 {[%emt 0:00:05]} d5 {[%emt 0:01:00]} 3. e3 {[%emt 0:00:02]} e6 {[%emt 0:00:06]} 4. Nf3 {[%emt 0:00:02]} Bd6 {[%emt 0:00:07]} 5. Bg3 {[%emt 0:00:01]} O-O {[%emt 0:00:10]} 6. Nbd2 {[%emt 0:00:07]} b6 {[%emt 0:00:06]} 7. c3 {[%emt 0:00:04]} c5 {[%emt 0:00:05]} 8. Bd3 {[%emt 0:00:34]} Bb7 {[%emt 0:00:29]} 9. Bxd6 {[%emt 0:05:55]} Qxd6 {[%emt 0:00:10]} 10. Ne5 {[%emt 0:00:04]} Nc6 {[%emt 0:04:57]} 11. f4 {[%emt 0:00:10]} Ne7 {[%emt 0:01:08]} 12. Qf3 {[%emt 0:03:44]} Nd7 {[%emt 0:05:51]} 13. Qh3 {[%emt 0:06:06]} f5 {[%emt 0:07:32]} 14. Nxd7 {[%emt 0:05:01]} Qxd7 {[%emt 0:00:03]} 15. Nf3 {[%emt 0:00:15]} c4 {[%emt 0:04:10]} 16. Bc2 {[%emt 0:00:40]} b5 {[%emt 0:00:02]} 17. Ne5 {[%emt 0:02:05]} Qd6 {[%emt 0:02:35]} 18. g4 {[%emt 0:00:17]} b4 {[%emt 0:03:00]} 19. Rg1 {[%emt 0:02:02]} a5 {[%emt 0:06:32]} 20. Qg3 {[%emt 0:08:31]} Qc7 {[%emt 0:07:41]} 21. Rg2 {[%emt 0:11:50]} Ra7 {[%emt 0:06:14]} 22. Ke2 {[%emt 0:14:17]} Bc6 {[%emt 0:04:21]} 23. Rag1 {[%emt 0:04:48]} Be8 {[%emt 0:00:39]} 24. gxf5 {[%emt 0:05:34]} Nxf5 {[%emt 0:01:43]} 25. Qh3 {[%emt 0:06:18]} Qb8 {[%emt 0:11:47]} 26. Bxf5 {[%emt 0:01:59]} Rxf5 {[%emt 0:00:16]} 27. Qh6 {[%emt 0:05:43]} Bg6 {[%emt 0:08:37]} 28. Nxg6 {[%emt 0:04:55]} gxh6 {[%emt 0:00:41]} 29. Ne7+ {[%emt 0:00:09]} Kf7 {[%emt 0:00:07]} 30. Rg7+ {[%emt 0:00:02]} Ke8 {[%emt 0:00:05]} 31. Rg8+ {[%emt 0:00:09]} Rf8 {[%emt 0:00:03]} 32. Rxf8+ {[%emt 0:00:04]} Kxf8 {[%emt 0:02:03]} 33. Rg8+ {[%emt 0:00:01]} Kxe7 {[%emt 0:00:02]} 34. Rxb8 Kf6 {[%emt 0:00:16]} 35. Kf3 {[%emt 0:08:23]} h5 {[%emt 0:00:56]} 36. e4 dxe4+ {[%emt 0:04:24]} 37. Kxe4 {[%emt 0:00:50]} bxc3 {[%emt 0:00:02]} 38. bxc3 {[%emt 0:00:01]} Rg7 {[%emt 0:00:02]} 1/2-1/2